Cogmind - Beta 16 @@@ ROGUE MODE // 2026.01.01 @ 19:14:29 Player: Xcalibur Result: Destroyed by G-47 Trooper with Particle Gun Performance ------------- Evolutions (0) 0 Regions Visited (2) 400 Robots Destroyed (21) 105 Value Destroyed (558) 558 Prototype IDs (0) 0 Alien Tech Used (0) 0 Bonus (0) 0 TOTAL SCORE: 1063 Bonus ------- None Cogmind --------- Core Integrity 0/250 Matter 172/300 Energy 250/250 System Corruption 0% Temperature Cool (9) Movement Treading (480) Ox4 Location -10/Subcaves Parts ------- > --- POWER (1) -------- Ion Engine > --- PROPULSION (2) --- Light Treads Light Treads > --- UTILITY (2) ------ Disposable Heat Sink Huge Storage Unit > --- WEAPON (2) ------- Small Laser Battle Rifle > --- INVENTORY (25) --- Subdweller Power Source Subdweller Power Source Subdweller Power Source Light Treads Light Treads Light Treads Wheel Compact Wheel Subdweller Monowheel Subdweller Monowheel Subdweller Monowheel Improved Heat Sink Subdweller Optics Subdweller Optics Subdweller Optics Seismic Detector Scrap Shield Cobbler Unit Assault Rifle Grenade Launcher Mining Laser Peak State ------------ > --- POWER ------------ Ion Engine > --- PROPULSION ------- Light Treads Light Treads > --- UTILITY ---------- Disposable Heat Sink Huge Storage Unit > --- WEAPON ----------- Subdweller Laser Battle Rifle > --- INVENTORY -------- Subdweller Power Source Subdweller Power Source Light Treads Light Treads Light Treads Wheel Compact Wheel Subdweller Monowheel Subdweller Monowheel Subdweller Monowheel Improved Heat Sink Subdweller Optics Subdweller Optics Subdweller Optics Seismic Detector Scrap Shield Cobbler Unit Small Laser Assault Rifle Grenade Launcher Mining Laser [Rating: 13] Favorites ----------- Power Ion Engine Engine Ion Engine Propulsion Light Treads Treads Light Treads Wheel Compact Wheel Utility Huge Storage Unit Device Seismic Detector Storage Huge Storage Unit Protection Light Armor Plating Weapon Medium Laser Energy Gun Medium Laser Ballistic Gun Battle Rifle Launcher Grenade Launcher Special Weapon Mining Laser Build | -11 -10 -10 ------- Run | Yrd Mat Sub Slots Evolved . | . . . Power . | . . . Propulsion . | . . . Utility . | . . . Weapon . | . . . Parts Attached 28 | 8 7 13 Power 3 | 1 1 1 Engine 3 | 1 1 1 Core . | . . . Reactor . | . . . Propulsion 7 | 2 . 5 Treads 4 | 1 . 3 Leg . | . . . Wheel 3 | 1 . 2 Hover . | . . . Flight . | . . . Utility 10 | 3 4 3 Device 5 | 2 2 1 Storage 3 | 1 2 . Processor . | . . . Hackware . | . . . Protection 2 | . . 2 Artifact . | . . . Weapon 8 | 2 2 4 Energy Gun 3 | 1 . 2 Energy Cannon . | . . . Ballistic Gun 3 | 1 1 1 Ballistic Cannon . | . . . Launcher 1 | . 1 . Special Weapon 1 | . . 1 Impact Weapon . | . . . Slashing Weapon . | . . . Piercing Weapon . | . . . Special Melee Weapon . | . . . Unidentified Prototypes . | . . . Parts Lost 4 | . . 4 Power 1 | . . 1 Propulsion . | . . . Utility 1 | . . 1 Weapon 2 | . . 2 Highest Loss Streak 2 | . . 2 To Critical Strikes . | . . . Average Backups 16 | 3 10 20 Power 2 | . 1 3 Propulsion 6 | 1 3 7 Utility 4 | . 1 5 Weapon 3 | 1 2 3 Tool/Special . | . . . Unused Backups 21 | . 3 18 Power 7 | . 1 6 Propulsion 9 | . 1 8 Utility 5 | . 1 4 Weapon . | . . . Tool/Special . | . . . Average Slot Usage (%) 98 | . 99 98 Engine 14 | . 14 14 Treads 14 | . 13 15 Wheel 13 | . 14 12 Device 10 | . 14 8 Storage 13 | . 14 13 Protection 2 | . . 4 Energy Gun 13 | . 13 13 Ballistic Gun 13 | . 13 14 Peak Build Rating 13 | 7 10 13 Average Rating 9 | 5 8 10 On Entrance 5 | . 7 10 Avg Prop Armor Cover (%) 11 | 3 11 11 Naked Turns . | . . . Heaviest Build 92 | 14 90 92 Greatest Support 40 | 20 20 40 Greatest Overweight (x) 9 | 1 5 9 Average Overweight (x) 4 | . 1 6 Largest Inventory Capacity 25 | 8 25 25 Average Capacity 20 | 7 14 24 Most Carried 25 | 7 16 25 Average Carried 17 | 4 10 21 Final Capacity 25 | 8 25 25 Final Carried 23 | 7 16 23 Class Distribution -------------------- 92% | Mutant 7% | Scavenger-Mutant Dominant Class ---------------- Mutant | -10/Materials Mutant | -10/Subcaves Resources | -11 -10 -10 ----------- Run | Yrd Mat Sub Matter Collected 755 | 275 198 282 Remotely . | . . . Salvage Created 760 | 41 419 300 Parts 50 | 6 27 17 Haulers Intercepted . | . . . Recyclers Shooed . | . . . Parts Field Recycled . | . . . Retrieved Matter . | . . . Parts Self-Destructed 5 | . . 5 Prevented . | . . . Parts Restored . | . . . Kills | -11 -10 -10 ------- Run | Yrd Mat Sub Combat Hostiles Destroyed 16 | . 11 5 Guns 11 | . 6 5 AOE 4 | . 4 . Classes Destroyed 8 | 1 4 3 Worker 1 | . 1 . Builder 2 | . 2 . Tunneler 2 | 2 . . Swarmer 3 | . 3 . Grunt 8 | . 8 . Sentry 1 | . . 1 Cobbler 1 | . . 1 Subdweller 4 | . . 4 Best Kill Streak 8 | 2 8 1 Combat Bots Only 6 | . 6 1 Max Kills in Single Turn 3 | 1 3 1 Gunslinging . | . . . Exploded 2 | . 2 . Melee . | . . . Uniques/NPCs Destroyed . | . . . Combat | -11 -10 -10 -------- Run | Yrd Mat Sub Hostile Shots Fired 83 | . 37 46 Missed 23 | . 10 13 Hits 60 | . 27 33 Projectile 60 | . 27 33 AOE 1 | . . 1 Critical Strikes 2 | . 1 1 Damage Taken 1142 | . 370 772 Core 255 | . 84 171 Absorbed by Shields . | . . . Core Remaining (%) 100 | 100 . . Volleys Fired 85 | 9 36 40 Largest 2 | 2 2 2 Hottest 100 | 70 70 100 Shots Fired 164 | 18 70 76 Gun 161 | 18 68 75 Cannon . | . . . Launcher 2 | . 2 . Special 1 | . . 1 Kinetic 82 | 9 34 39 Thermal 80 | 9 34 37 Explosive 2 | . 2 . Electromagnetic . | . . . Robot Hit Streak 17 | 9 7 17 Robot Miss Streak 6 | 2 6 2 Penetration Max . | . . . Secondary Targets . | . . . Shots Hit Robots 119 | 13 42 64 Core Hits 47 | 5 25 17 Critical Kills . | . . . Critical Parts Destroyed . | . . . Critical Strikes 2 | . 2 . Burn 2 | . 2 . Melee Attacks . | . . . Impact . | . . . Slashing . | . . . Piercing . | . . . Sneak Attacks . | . . . Combat Hostiles . | . . . Follow-up Attacks . | . . . Damage Inflicted 1769 | 135 740 894 Guns 1488 | 135 459 894 Cannons . | . . . Explosions 281 | . 281 . Melee . | . . . Ramming . | . . . Kinetic 770 | 71 168 531 Thermal 718 | 64 291 363 Explosive 281 | . 281 . Electromagnetic . | . . . Impact . | . . . Slashing . | . . . Piercing . | . . . Highest Corruption . | . . . Average Corruption . | . . . Corruption Purged . | . . . Corruption Blocked . | . . . Overload Shots . | . . . Overflow Damage 28 | . 28 . Projectiles . | . . . Explosions 28 | . 28 . Melee . | . . . Knockbacks . | . . . Impact . | . . . Kinetic . | . . . Secondary . | . . . Self-Inflicted Damage . | . . . Shots . | . . . Rammed . | . . . Targets Rammed . | . . . Kicked . | . . . Crushed . | . . . Highest Temperature 308 | 120 299 308 Average Temperature 75 | 58 92 49 Received Heat Transfer 717 | . 204 513 Siege Activations . | . . . Martial Activations . | . . . Shielding Activations . | . . . Robots Disrupted . | . . . Combat Hostiles . | . . . Robots Corrupted . | . . . Combat Hostiles . | . . . Parts Fried . | . . . Impact Corruptions . | . . . Robots Melted 1 | . 1 . Combat Hostiles 1 | . 1 . Parts Melted 4 | . 4 . Heat Transferred 2076 | 185 999 892 Parts Sabotaged . | . . . Parts Stolen . | . . . Parts Stripped . | . . . Power Chain Reactions . | . . . Alert | -11 -10 -10 ------- Run | Yrd Mat Sub Maximum Alert Level . | . . . Low Security (%) 100 | 100 100 . Level 1 . | . . . Level 2 . | . . . Level 3 . | . . . Level 4 . | . . . Level 5 . | . . . High Security . | . . . Max Security . | . . . Peak Influence 159 | 5 159 . Initial . | . . . Average 51 | . 61 . Influence Increases 349 | 10 319 20 Destroy 0b10 Robot/C 240 | . 220 20 Destroy 0b10 Robot/NC 25 | 10 15 . Destroy Leader 60 | . 60 . Successful Hack 17 | . 17 . Destroy Structure 7 | . 7 . Influence Decreases 349 | 10 221 118 Entered New Map 48 | . . 48 Time Decay 301 | 10 221 70 Squads Dispatched 3 | . 3 . Investigation 2 | . 2 . Extermination . | . . . Reinforcement 1 | . 1 . Assault . | . . . Garrison . | . . . Intercept . | . . . Searches Triggered . | . . . Construction Impeded . | . . . Haulers Reinforced . | . . . Active Scanning Responses . | . . . Cargo Convoy Interrupts . | . . . Stealth | -11 -10 -10 --------- Run | Yrd Mat Sub Distress Signals 1 | . 1 . Communications Jammed . | . . . Distress Signals . | . . . Times Spotted 25 | . 16 9 Peak Tracking Total 6 | . 6 2 Tactical Retreats . | . . . Traps | -11 -10 -10 ------- Run | Yrd Mat Sub Traps Triggered 4 | . 4 . Indirectly . | . . . Trap Hack Attempts . | . . . Triggered . | . . . Disarmed . | . . . Reprogrammed . | . . . Reused . | . . . Traps Extracted . | . . . Installed . | . . . Triggered . | . . . Machines | -11 -10 -10 ---------- Run | Yrd Mat Sub Machines Disabled . | . . . Max in Single Turn . | . . . Machines Repaired . | . . . Machines Dismantled . | . . . Machines Sabotaged . | . . . Overloaded Fab Kills . | . . . Hacking | -11 -10 -10 --------- Run | Yrd Mat Sub Machines Accessed 3 | . 2 1 Terminals 2 | . 2 . Fabricators . | . . . Repair Stations . | . . . Recycling Units . | . . . Scanalyzers . | . . . Garrison Access . | . . . Total Hacks 13 | . 10 3 Successful 7 | . 4 3 Failed 6 | . 6 . Catastrophic . | . . . Database Lockouts . | . . . Manual 10 | . 10 . Terminals 10 | . 10 . Fabricators . | . . . Repair Stations . | . . . Recycling Units . | . . . Scanalyzers . | . . . Garrison Access . | . . . Terminal Hacks 5 | . 2 3 Record 3 | . . 3 Robot Analysis 1 | . 1 . Terminal Index 1 | . 1 . Fabricator Hacks . | . . . Repair Station Hacks . | . . . Recycling Unit Hacks . | . . . Scanalyzer . | . . . Garrison Access Hacks . | . . . Unauthorized Hacks 2 | . 2 . Terminals 2 | . 2 . Botnet 2 | . 2 . Fabricators . | . . . Repair Stations . | . . . Recycling Units . | . . . Scanalyzers . | . . . Garrison Access . | . . . Data Cores Recovered . | . . . Used . | . . . Hacking Detections 2 | . 2 . Full Trace Events . | . . . Feedback Events . | . . . Feedback Blocked . | . . . Robot Schematics Acquired . | . . . Robots Built . | . . . Authchips . | . . . Time . | . . . Total Robot Build Rating . | . . . Part Schematics Acquired . | . . . Parts Built . | . . . Authchips . | . . . Time . | . . . Total Part Build Rating . | . . . Part Studies Acquired . | . . . Parts Repaired . | . . . Time . | . . . Parts Recycled . | . . . Recycled Matter . | . . . Retrieved Matter . | . . . Retrieved Components . | . . . Parts Scanalyzed . | . . . Part Schematics Acquired . | . . . Parts Damaged . | . . . Bothacking | -11 -10 -10 ------------ Run | Yrd Mat Sub Used RIF Installer . | . . . Robots Hacked . | . . . Non-combat . | . . . Combat . | . . . Robot Hacks Applied . | . . . Relay Couplers Released . | . . . Fabnet Peak Effective % . | . . . Robots Rewired . | . . . Allies Hacked . | . . . Hacks Repelled . | . . . Allies | -11 -10 -10 -------- Run | Yrd Mat Sub Total Allies . | . . . Largest Group . | . . . Highest-Rated Group . | . . . Highest-Rated Ally . | . . . Total Orders . | . . . Ally Attacks . | . . . Total Damage . | . . . Kills . | . . . Allies Corrupted . | . . . Allies Melted . | . . . Intel | -11 -10 -10 ------- Run | Yrd Mat Sub Active Infowar (turns) 1147 | 31 238 878 Structural 67 | . 67 . Seismic 1080 | 31 171 878 Robot Analysis Total 1 | . 1 . Derelict Logs Recovered 1 | . . 1 Drone Launches . | . . . Drone Recoveries . | . . . Exploration | -11 -10 -10 ------------- Run | Yrd Mat Sub Turns Passed 2243 | 118 647 1478 Spaces Moved 1055 | 52 362 641 Core 2 | 2 . . Treads 121 | 40 68 13 Legs . | . . . Wheels 932 | 10 294 628 Hover . | . . . Flight . | . . . Fastest Speed 50 | 50 100 80 Average Speed 167 | 145 135 186 Slowest Speed 320 | 160 240 320 Overloaded Moves . | . . . Propulsion Burnouts . | . . . Robots Hopped . | . . . Potential Cave-ins . | . . . Cave-ins Triggered . | . . . Exploration Rate (%) 32 | 3 51 43 Regions Visited 2 Branch Regions 1 Pre-discovered Areas 1 | . . 1 Known Exits Taken . | . . . Unknown Exits Taken 2 | 1 1 . Scrap Searched . | . . . Spaces Dug . | . . . Terrain Destroyed 6 | . 6 . Melee . | . . . Projectile . | . . . AOE 6 | . 6 . Terrain Rammed . | . . . Walls Destroyed . | . . . Machines Disabled . | . . . Actions | -11 -10 -10 --------- Run | Yrd Mat Sub Total 1369 | 74 451 844 Wait 107 | . 23 84 Move 1053 | 51 361 641 Hop . | . . . Pick Up 53 | 6 11 36 Fast Attach 14 | 7 4 3 Attach 4 | . . 4 Detach 1 | . . 1 Swap 32 | 1 10 21 Drop 19 | . 6 13 Fire 85 | 9 36 40 Melee . | . . . Ram . | . . . Kick . | . . . Crush . | . . . Escape Stasis . | . . . Rewire . | . . . Trap . | . . . Miscellaneous 1 | . . 1 Route ------- -11/Scrapyard -10/Materials (discovered 3 exits: [*Mat] / [*Min] / *Sub) -10/Subcaves (discovered 3 exits: Mat x2 / Rec) History --------- Turn | Location | Event 20 | -11/Scrapyard | Discovered new exit (range 14) 119 | -11/Scrapyard | Entered Materials 305 | -10/Materials | Build established: Mutant 325 | -10/Materials | Discovered new exit (range 15) 468 | -10/Materials | Discovered new exit (range 3) 756 | -10/Materials | Discovered new exit (range 6) 766 | -10/Materials | Entered Subcaves 767 | -10/Subcaves | Approached by a straggling Scientist 962 | -10/Subcaves | Visited Clippyterm 967 | -10/Subcaves | Identified exit to Materials 967 | -10/Subcaves | Identified exit to Recycling 1097 | -10/Subcaves | Learned location of Zion (-6) 1278 | -10/Subcaves | Core integrity fell below 50% 1380 | -10/Subcaves | Shifting Twisted Machinery released Battle Rifle 1813 | -10/Subcaves | Core integrity fell below 20% 1874 | -10/Subcaves | Shifting Twisted Machinery released Sub. Power Source 2244 | -10/Subcaves | Destroyed by G-47 Trooper with Particle Gun Last Messages --------------- 01630_ Acquired Sub. Optics. 01633_ Dropped Sub. Monowheel. 01633_ Acquired Sub. Monowheel. 01635_ Subatomizers dissect the Sub. Power Source. 01635_ Dropped Lrg. Storage Unit. 01637_ Acquired Sub. Power Source. 01644_ Dropped Wheel. 01644_ Acquired Sub. Monowheel. 01647_ Subatomizers dissect the Sub. Optics. 01650_ Dropped Lgt. Treads. 01650_ Acquired Sub. Optics. 01657_ Subatomizers dissect the Wheel. 01803_ Ion Engine destroyed. 01803_ Critical hit (Meltdown: +300). 01808_ Sub. Laser destroyed. 01839_ Destroyed Scrap Shield. 01842_ 03-XAD(R) destroyed. Sub. Power Source falls loose from the Twisted Machinery. 01884_ Acquired Sub. Power Source. 02056_ Acquired 35 matter. Map ----- +----------------------------------------------------+ | ?????????????????????????????????????????????????? | | ??????????????????????##?????????????????????????? | | ??????????????????????# ####?????????????????????? | | ?????????? ???????????# ##????????????????????? | | ????????? #?????????? #????????????????????? | | ????????# #??????? ?? ????????????????????? | | ???????## ##???? #????????????????????? | | ???????? #???? #????####????????????? | | ???????? ##?? #?### ##???????????? | | ????????? #?? #? ##??????????? | | ????????? #? ## #??????????? | | ?????????? ## #??????????? | | ?????????? #?# #??????????? | | ??????????? #??# #??????????? | | ??????????? #???# #???????????? | | ???????????# #???# #???????????? | | ???????????# ##?## ##???????????? | | ???????????# #?# ## ## #????????????? | | ???????????# #?## ##? ##????????????????? | | ??????????## ## ##??### ####?????????????????? | | ????????### #??? #?????# #??????????????????? | | ????????# ##?? ##???##g ##?????????????????# | | ????????# ### #???# g #??????????? ??# | | ????????# ## ##### #??????????? """??# | | ????????# ### ## ##??????????"""""??# | | ????????# #### @ #???????????"" ### | | ????????# ### #???????????? | | ????????## ### #??????????? | | ?????????# ### #???????????? | | ?????????## ## #########?????????????## | | ?????????## #??????????????????????# | | ?????????# # #??????????????????## | | ?????????## % ??????????????##" | | ??????????## ### % ??????????????#""" | | ???????????# ##?# # #"" ???????????# " | | ???????????## ##?? ###?#?? ??????????## | | ????????????# #??? ###??# ?##?????????##" # | | ????????????# #??? ## ### #?????????##" ###### | | ????????????## #??? ?# #????????## ##????? | | ???????????### #???#?# ## ##????????# ##?####? | | ???????#####^ ######?## #????????# #### ## | | ???????# ## ### #? #????????## ## | | ???????# ^ ## ## ?????## | | ???????# ## ?????## | | ???????#??#" # #??????#### | | ?????????# " "#### #?????????# | | ?????????##"" "# #####??????###???# | | ??????????## ""# #?????????## ##?## | | ???????????# ""# ## ####??????# #?# | | ???????????# """### ## ##?????# ### | +----------------------------------------------------+ Best States ------------- Heat Dissipation 39 Coolant Potential 50 Energy Generation 10 Energy Capacity 250 Matter Stores 300 Matter Capacity 300 Sight Range 16 Terrain Scan Density 10 Armor Coverage 800 Evasion (%) 44 Recoil Reduction 2 Item Schematics ----------------- None Robot Schematics ------------------ None Fabricated ------------ Nothing Repaired ---------- Nothing Studied --------- None Alien Tech Used ----------------- None Achievements -------------- Survival Of The Most Covered Challenges ------------ None Game ------ Seed GravityTimingRedirector Manual? 0 Play Time 00:27:40 Cumulative 129.8 hours Start 2025.12.31 @ 00:00:55 End 2026.01.01 @ 19:14:29 Sessions 4 Manual Loads 0 Difficulty Rogue Special Mode None Game No. 55 Rogue 55 Adventurer 0 Explorer 0 Win Type - Total 5 Types 5/0/0/0/0/0/0/0/0/0 Lore% 34 Gallery% 48 Achievement% 38 Wizard Run 0 Options --------- Layout 0 ASCII 0 Keyboard 0 Movement Arrows Keybinds 0 Fullscreen 2 Font 18/Terminus Map View 76x50 Zoom Use 0% Tactical HUD 1 Map Filters NONE Filters NONE Steam 1 RUN: f78883f3-07dc-40b8-8f18-01c8b8044177